bitfinex/quotes_ETHUSD_20240928
["timestamp","ask_amount","ask_price","bid_price","bid_amount"]
[1727512911775,2.34443193,2679.8,2679.6,3.7319]
[1727512911978,1.5679544,2679.8,2679.6,3.7319]
[1727512912439,2.34443193,2679.8,2679.6,3.7319]
[1727512917547,0.77647753,2679.7,2679.6,3.7319]
[1727512919706,2.73482711,2679.8,2679.6,3.7319]
[1727512920596,1.16687271,2679.7,2679.6,3.7319]
[1727512920805,0.8232,2679.6,2679.3,3.73224]
[1727512921009,0.8232,2679.3,2679.1,3.73248]
[1727512921170,0.77653727,2679.2,2679.1,3.73248]
[1727512921575,2.03800701,2679.3,2679.0,3.73273]
[1727512921878,0.77680979,2679.1,2679.0,3.73273]
[1727512922079,0.77680979,2679.1,2678.7,4.53366]
[1727512922298,2.39476425,2679.0,2678.8,6.73299]
[1727512922608,1.60000979,2678.9,2678.8,6.73299]
[1727512923108,0.77680979,2678.9,2678.8,6.73299]
[1727512924098,0.77680979,2678.9,2678.8,7.779603]
[1727512924408,0.77680979,2679.0,2678.9,3.73287]
[1727512924718,1.16480695,2679.1,2679.0,3.73273]
[1727512925488,1.55637431,2679.1,2679.0,3.73273]
[1727512925775,1.2217611,2679.1,2679.0,3.73273]
[1727512926004,1.55637431,2679.2,2679.1,3.73259]
[1727512926405,3.16445029,2679.2,2679.1,3.73259]
[1727512926927,1.22241029,2679.2,2679.1,3.73259]
[1727512927421,1.22241029,2679.3,2679.1,3.73259]
[1727512927616,3.55903887,2679.3,2679.2,3.73245]
[1727512928790,1.22241029,2679.3,2679.2,3.73245]
[1727512928991,3.56127992,2679.4,2679.3,3.73231]
[1727512929205,3.56126684,2679.4,2679.3,3.73231]
[1727512929687,0.39070219,2679.7,2679.4,3.73217]
[1727512929688,3.86892744,2679.5,2679.4,3.73217]
[1727512929985,3.56476914,2679.5,2679.4,3.73217]
[1727512930181,2.33982711,2679.5,2679.4,3.73217]
[1727512930383,2.33982711,2679.5,2679.3,3.7323]
[1727512930384,3.56476914,2679.5,2679.3,3.7323]
[1727512930579,1.91980252,2679.7,2679.5,3.73203]
[1727512930795,1.22514901,2679.6,2679.4,3.73217]
[1727512930986,3.56540671,2679.5,2679.4,3.73209]
[1727512931809,5.09477459,2679.5,2679.4,3.73209]
[1727512932008,3.56567426,2679.5,2679.4,3.73209]
[1727512934064,3.56567426,2679.5,2679.3,3.7323]
[1727512934263,1.22514901,2679.4,2679.3,3.73221]
[1727512934464,3.56674718,2679.4,2679.3,3.73221]
[1727512934764,2.34159817,2679.4,2679.3,3.73221]
[1727512935055,3.56674718,2679.4,2679.3,3.73221]
[1727512935411,2.34159817,2679.4,2679.3,3.73221]
[1727512935723,3.56674718,2679.4,2679.3,3.73221]
[1727512936714,2.34201932,2679.4,2679.3,3.73221]
[1727512936955,3.56716833,2679.4,2679.3,3.73221]
[1727512937149,2.34201932,2679.4,2679.3,3.73221]
[1727512937313,3.56716833,2679.4,2679.3,3.73221]
[1727512937514,2.34201932,2679.4,2679.3,3.73221]
[1727512937814,3.56716833,2679.4,2679.3,3.73221]
[1727512938014,2.34201932,2679.4,2679.3,3.73221]
[1727512938267,3.56716833,2679.4,2679.3,3.73221]
[1727512938579,2.34201932,2679.4,2679.3,3.73221]
[1727512938862,4.38116066,2679.4,2679.3,3.73221]
[1727512939459,3.56736066,2679.4,2679.3,3.73221]
[1727512939752,2.34221165,2679.4,2679.3,3.73221]
[1727512939961,3.56736066,2679.4,2679.3,3.73221]
[1727512946367,3.56848056,2679.4,2679.3,3.73221]
[1727512946779,2.34333155,2679.4,2679.3,3.73221]
[1727512946938,3.56848056,2679.4,2679.3,3.73221]
[1727512947132,2.34333155,2679.4,2679.3,3.73221]
[1727512947337,3.56848056,2679.4,2679.3,3.73221]
[1727512947677,2.34333155,2679.4,2679.3,3.73221]
[1727512947881,3.56848056,2679.4,2679.3,3.73221]
[1727512948037,2.34333155,2679.4,2679.3,3.73221]
[1727512948238,3.56848056,2679.4,2679.3,4.49701]
[1727512948635,2.34333155,2679.4,2679.3,4.49701]
[1727512949184,3.56848056,2679.4,2679.3,4.49701]
[1727512949407,2.34333155,2679.4,2679.3,4.49701]
[1727512949857,3.56848056,2679.4,2679.3,4.49701]
[1727512950170,1.22514901,2679.4,2679.3,5.319955]
[1727512950369,4.65368933,2679.7,2679.4,3.73217]
[1727512950370,3.87243188,2679.6,2679.4,3.73217]
[1727512950573,2.73403374,2679.7,2679.5,5.0820215]
[1727512950739,0.39070219,2679.7,2679.6,3.7319]
[1727512950933,3.58997384,2679.7,2679.6,5.87950459]
[1727512951346,3.19927165,2679.7,2679.6,5.87950459]
[1727512953240,1.24622695,2679.7,2679.6,5.87950459]
[1727512953597,1.56190117,2679.7,2679.6,5.87950459]
[1727512954078,1.9530447,2679.8,2679.6,5.87950459]
[1727512954283,1.24622695,2679.7,2679.6,4.5499]
[1727512954580,3.19927165,2679.7,2679.6,4.5499]
[1727512954799,1.24622695,2679.7,2679.5,3.73201]
[1727512954939,3.5895585,2679.7,2679.5,3.73201]
[1727512955140,1.24622695,2679.6,2679.5,3.73201]
[1727512955551,1.24622695,2679.6,2679.5,5.005011]
[1727512955973,1.17102034,2679.6,2679.5,5.005011]
[1727512956442,1.24456871,2679.6,2679.5,5.005011]
[1727512958689,0.07354837,2679.6,2679.5,5.005011]
[1727512958893,1.24456871,2679.6,2679.5,5.005011]
[1727512959187,0.07354837,2679.6,2679.5,5.005011]
[1727512960699,0.85364547,2679.6,2679.5,5.005011]
[1727512963196,0.7800971,2679.6,2679.5,5.005011]
[1727512965600,0.7800971,2679.7,2679.6,3.7319]
[1727512965891,0.85369568,2679.7,2679.6,3.7319]
[1727512968397,0.85369568,2679.7,2679.6,5.2998544]
[1727512968722,0.07359858,2679.7,2679.6,5.2998544]
[1727512969095,0.7800971,2679.8,2679.7,3.73176]
[1727512969277,0.7800971,2679.8,2679.7,4.76222154]
[1727512969630,0.85385851,2679.8,2679.7,4.76222154]
[1727512970589,1.24478175,2679.8,2679.7,4.76222154]
[1727512973627,1.63505041,2679.8,2679.7,3.73176]
[1727512973831,2.87880742,2679.8,2679.7,3.73176]
[1727512974011,1.31751842,2679.8,2679.7,3.73176]
[1727512974842,3.26654072,2679.8,2679.7,3.73176]
[1727512975404,3.26695504,2679.8,2679.7,3.73176]
[1727512977900,3.26695504,2679.8,2679.6,3.7319]
[1727512978096,3.19319363,2679.7,2679.6,3.7319]
[1727512978337,1.31772385,2679.7,2679.6,3.7319]
[1727512978934,0.07396684,2679.7,2679.6,3.7319]
[1727512979143,1.55952713,2679.7,2679.6,3.7319]
[1727512979344,2.87725098,2679.7,2679.6,3.7319]
[1727512979532,1.31772385,2679.7,2679.6,3.7319]
[1727512980543,3.26716681,2679.7,2679.6,3.7319]
[1727512982954,1.31772385,2679.7,2679.6,3.7319]
[1727512983248,3.26716681,2679.7,2679.6,3.7319]
[1727512983654,3.26773384,2679.7,2679.6,3.7319]
[1727512988579,3.26880045,2679.7,2679.6,3.7319]
[1727512991263,1.31772385,2679.7,2679.6,3.7319]
[1727512992975,4.42191577,2679.7,2679.6,3.7319]
[1727512993338,4.42307211,2679.7,2679.6,3.7319]
[1727512998148,2.08062385,2679.7,2679.6,3.7319]
[1727512998353,4.42359907,2679.7,2679.6,3.7319]
[1727512999264,3.66069907,2679.7,2679.6,3.7319]
[1727513003186,3.66086048,2679.7,2679.6,3.7319]
[1727513006507,1.31772385,2679.7,2679.6,5.301092]
[1727513008932,1.31772385,2679.7,2679.6,4.478292]
[1727513009075,4.42379159,2679.7,2679.6,3.7319]
[1727513010725,4.42379159,2679.7,2679.0,0.7779]
[1727513010894,1.95247191,2679.1,2679.0,3.73272]
[1727513011078,3.15395264,2679.3,2679.2,3.73245]
[1727513011278,2.05355748,2679.3,2679.2,3.73245]
[1727513011819,4.39577432,2679.3,2679.2,3.73245]
[1727513012022,2.05355748,2679.3,2679.2,3.73245]
[1727513012577,4.39525926,2679.3,2679.2,3.73245]
[1727513015683,4.46872665,2679.3,2679.2,3.73245]
[1727513016616,4.46872665,2679.3,2679.1,3.73258]
[1727513016920,1.24265748,2679.2,2679.1,7.46516]
[1727513017288,1.31607465,2679.2,2679.1,7.46516]
[1727513020337,1.31607465,2679.2,2679.1,8.36847144]
[1727513020637,2.024058,2679.2,2679.1,8.36847144]
[1727513020804,3.26671548,2679.2,2679.1,9.16487144]
[1727513022439,3.26707397,2679.2,2679.1,9.16487144]
[1727513023396,2.87685732,2679.2,2679.1,9.16487144]
[1727513023813,1.31607465,2679.2,2679.1,9.16487144]
[1727513024641,3.26707397,2679.2,2679.1,9.16487144]
[1727513024961,1.31607465,2679.2,2679.1,9.16487144]
[1727513026861,2.87683767,2679.2,2679.1,9.16487144]
[1727513028429,1.31607465,2679.2,2679.1,9.16487144]
[1727513028623,0.07341717,2679.2,2679.1,9.16487144]
[1727513029010,1.9509601,2679.3,2679.1,5.43229144]
[1727513029211,1.31319783,2679.2,2679.1,5.43229144]
[1727513030157,1.63131049,2679.2,2679.1,5.43229144]
[1727513030357,0.07054035,2679.2,2679.1,5.43229144]
[1727513030712,1.9509601,2679.3,2679.2,3.73245]
[1727513030953,3.19268427,2679.3,2679.2,3.73245]
[1727513032133,3.19270542,2679.3,2679.2,3.73245]
[1727513032539,1.24172417,2679.3,2679.2,3.73245]
[1727513032739,2.3411775,2679.5,2679.3,3.73223]
[1727513032934,1.24175593,2679.4,2679.3,3.73223]
[1727513034486,1.31239671,2679.4,2679.3,3.73223]
[1727513040583,1.31239671,2679.4,2679.3,5.34520239]
[1727513041429,0.07064078,2679.4,2679.3,9.98779887]
[1727513041594,0.07064078,2679.4,2679.3,10.41215441]
[1727513041777,0.78097854,2679.8,2679.6,3.7319]
[1727513041976,0.78097854,2679.8,2679.7,8.257552]
[1727513044621,0.78097854,2679.9,2679.8,6.73162]
[1727513044917,1.17146781,2679.9,2679.8,6.73162]
[1727513045122,1.23169827,2679.9,2679.8,6.73162]
[1727513045289,1.32666133,2679.9,2679.8,6.73162]
[1727513045482,1.2316678,2679.9,2679.8,6.73162]
[1727513046217,2.88842621,2679.9,2679.8,6.73162]
[1727513046656,1.32646912,2679.9,2679.8,3.73162]
[1727513046870,1.6231367,2679.9,2679.8,3.73162]
[1727513047048,2.88842621,2679.9,2679.8,3.73162]
[1727513051929,1.32646912,2679.9,2679.8,3.73162]
[1727513052277,2.88842621,2679.9,2679.8,3.73162]
[1727513055388,1.32646912,2679.9,2679.8,3.73162]
[1727513056442,2.88842621,2679.9,2679.8,3.73162]
[1727513060119,1.32646912,2679.9,2679.8,3.73162]
[1727513060258,2.88842621,2679.9,2679.8,3.73162]
[1727513074582,1.32646912,2679.9,2679.8,3.73162]
[1727513074763,1.62214628,2679.9,2679.8,3.73162]
[1727513074962,2.88743579,2679.9,2679.8,3.73162]
[1727513075575,1.32646912,2679.9,2679.8,3.73162]
[1727513075877,2.0126009,2679.9,2679.8,3.73162]
[1727513076077,3.27789041,2679.9,2679.8,3.73162]
[1727513080593,3.27958094,2679.9,2679.8,3.73162]
[1727513082583,1.32646912,2679.9,2679.8,3.73162]
[1727513085584,3.6722109,2679.9,2679.8,3.73162]
[1727513089374,1.32646912,2679.9,2679.8,4.557818]
[1727513090414,1.32646912,2679.9,2679.8,6.8906724]
[1727513090978,1.32646912,2679.9,2679.8,9.8906724]
[1727513090979,2.01811297,2679.9,2679.8,9.8906724]
[1727513091181,3.28340248,2679.9,2679.8,9.8906724]
[1727513094039,1.32646912,2679.9,2679.8,9.8906724]
[1727513094241,3.28340248,2679.9,2679.8,9.8906724]
[1727513094546,1.32646912,2679.9,2679.8,9.8906724]
[1727513097239,0.06117961,2679.9,2679.8,9.8906724]
[1727513097541,1.62569279,2679.9,2679.8,9.8906724]
[1727513097927,2.8909823,2679.9,2679.8,9.8906724]
[1727513103470,2.82980269,2679.9,2679.8,9.8906724]
[1727513103634,1.56451318,2679.9,2679.8,9.8906724]
[1727513103985,2.88755954,2679.9,2679.8,9.8906724]
[1727513105860,1.32304636,2679.9,2679.8,9.8906724]
[1727513106045,2.88755954,2679.9,2679.8,9.8906724]
[1727513106629,1.23047484,2679.9,2679.8,9.8906724]
[1727513107439,0.05775685,2679.9,2679.8,9.8906724]
[1727513108365,0.8394753,2679.9,2679.8,9.8906724]
[1727513108676,0.05775685,2679.9,2679.8,9.8906724]
[1727513109059,0.83946076,2679.9,2679.8,9.8906724]
[1727513109852,0.83938884,2679.9,2679.8,9.8906724]
[1727513110837,0.05775685,2679.9,2679.8,9.8906724]
[1727513111033,0.83923336,2679.9,2679.8,9.8906724]
[1727513112247,0.83919093,2679.9,2679.8,9.8906724]
[1727513112448,0.83922097,2679.9,2679.8,9.8906724]
[1727513112936,0.05775685,2679.9,2679.8,11.43896471]
[1727513113147,0.78146412,2680.2,2680.1,3.7312]
[1727513113345,0.78146412,2680.2,2680.1,7.5214]
[1727513114334,0.78146412,2680.3,2680.2,6.73106]
[1727513114539,0.78146412,2680.3,2680.2,8.2990144]
[1727513115048,1.17271799,2680.3,2680.2,6.73106]
[1727513118176,1.22673478,2680.3,2680.2,6.73106]
[1727513118383,1.22673478,2680.3,2680.2,8.38623344]
[1727513119846,0.05401679,2680.3,2680.2,8.38623344]
[1727513120140,1.22673478,2680.3,2680.2,8.38623344]
[1727513120345,0.05401679,2680.3,2680.2,8.38623344]
[1727513121039,0.83517627,2680.3,2680.2,8.38623344]
[1727513124594,0.05401679,2680.3,2680.2,8.38623344]
[1727513124908,0.83517627,2680.3,2680.2,8.38623344]
[1727513127971,0.05401679,2680.3,2680.2,8.38623344]
[1727513128469,0.83517627,2680.3,2680.2,8.38623344]
[1727513130338,0.05401679,2680.3,2680.2,8.38623344]
[1727513131774,0.83517627,2680.3,2680.2,8.38623344]
[1727513132005,0.05401679,2680.3,2680.2,8.2990144]
[1727513132681,0.83510759,2680.3,2680.2,8.2990144]
[1727513133106,0.83510759,2680.3,2680.2,9.0527144]
[1727513133327,0.83510759,2680.3,2680.2,8.2990144]
[1727513134018,0.83510759,2680.3,2680.2,9.95053784]
[1727513138240,0.05401679,2680.3,2680.2,10.70423784]
[1727513141642,0.83510759,2680.3,2680.2,10.70423784]
[1727513142709,0.83510759,2680.3,2680.2,9.95053784]
[1727513148260,0.83510759,2680.3,2680.2,6.73106]
[1727513148421,1.22673478,2680.3,2680.2,6.73106]
[1727513151449,0.05401679,2680.3,2680.2,6.73106]
[1727513151655,1.304336,2680.3,2680.2,6.73106]
[1727513153246,2.86884918,2680.3,2680.2,6.73106]
[1727513166269,1.304336,2680.3,2680.2,6.73106]
[1727513169086,2.87009068,2680.3,2680.2,8.2990144]
[1727513169303,1.304336,2680.3,2680.2,9.87516784]
[1727513169599,1.22839521,2680.3,2680.2,10.65766784]
[1727513171469,0.05401679,2680.3,2680.2,10.65766784]
[1727513171668,1.22837679,2680.3,2680.2,10.65766784]
[1727513172185,0.05401679,2680.3,2680.2,10.65766784]
[1727513172387,2.44457147,2680.3,2680.2,6.73106]
[1727513172586,2.13032448,2680.3,2680.2,6.73106]
[1727513174802,2.13032448,2680.3,2680.2,3.73106]
[1727513175002,4.47838615,2680.3,2680.2,3.73106]
[1727513175213,4.47725762,2680.3,2680.2,3.73106]
[1727513176470,2.13032448,2680.3,2680.2,3.73106]
[1727513178073,4.47528531,2680.3,2680.2,3.73106]
[1727513178674,4.47520413,2680.3,2680.2,3.73106]
[1727513179492,3.65040413,2680.3,2680.1,3.73119]
[1727513179705,4.42118734,2680.2,2680.1,3.73119]
[1727513180192,4.4747552,2680.2,2680.1,3.73119]
[1727513182166,2.12987555,2680.2,2680.1,3.73119]
[1727513184309,2.12987555,2680.2,2680.0,3.73134]
[1727513184605,0.8248,2680.1,2680.0,3.73134]
[1727513184792,2.07630769,2680.1,2680.0,3.73134]
[1727513185002,2.12972119,2680.1,2680.0,3.73134]
[1727513187397,4.08023926,2680.1,2680.0,3.73134]
[1727513188418,4.08012251,2680.1,2680.0,3.73134]
[1727513190539,3.68980844,2680.1,2680.0,3.73134]
[1727513193118,2.86500844,2680.1,2680.0,3.73134]
[1727513198027,1.30492119,2680.1,2680.0,3.73134]
[1727513202557,1.6159869,2680.1,2680.0,3.73134]
[1727513202728,1.30492119,2680.1,2680.0,3.73134]
[1727513203959,1.61615126,2680.1,2680.0,3.73134]
[1727513204118,1.30492119,2680.1,2680.0,3.73134]
[1727513206317,3.25694968,2680.1,2680.0,3.73134]
[1727513206517,1.30492119,2680.1,2680.0,3.73134]
[1727513207232,3.25694968,2680.1,2680.0,3.73134]
[1727513207431,1.30492119,2680.1,2680.0,3.73134]
[1727513208262,3.25863492,2680.1,2680.0,3.73134]
[1727513209821,1.30492119,2680.1,2680.0,3.73134]
[1727513210332,3.25863492,2680.1,2680.0,3.73134]
[1727513212631,3.25929217,2680.1,2680.0,3.73134]
[1727513215687,1.30492119,2680.1,2680.0,3.73134]
[1727513215888,2.08152119,2680.1,2680.0,3.73134]
[1727513217733,3.65328835,2680.1,2680.0,3.73134]
[1727513218292,3.65438773,2680.1,2680.0,3.73134]
[1727513219330,1.30492119,2680.1,2680.0,3.73134]
[1727513219746,3.6548195,2680.1,2680.0,3.73134]
[1727513220446,3.65529359,2680.1,2680.0,3.73134]
[1727513220943,1.30492119,2680.1,2680.0,3.73134]
[1727513221089,0.7766,2680.0,2679.9,3.73147]
[1727513221287,2.02810769,2680.0,2679.9,3.73147]
[1727513221531,2.07869008,2680.0,2679.9,3.73147]
[1727513223054,2.07869008,2680.0,2679.5,4.52504]
[1727513223221,4.04360889,2679.9,2679.7,3.73169]
[1727513223434,4.04360889,2679.9,2679.3,0.7931]
[1727513223435,0.7766,2679.7,2679.3,3.73228]
[1727513223692,0.7766,2679.4,2679.1,3.73255]
[1727513223891,2.34900811,2679.2,2679.1,3.73255]
[1727513224135,3.6005158,2679.2,2679.1,3.73255]
[1727513224339,1.3013877,2679.2,2679.1,3.73255]
[1727513224641,3.64813478,2679.2,2679.1,3.73255]
[1727513224840,3.64813478,2679.2,2679.0,3.73271]
[1727513225134,1.25150769,2679.1,2679.0,3.73271]
[1727513225438,3.20594671,2679.1,2679.0,3.73271]
[1727513225638,3.2557765,2679.1,2679.0,3.73271]
[1727513227538,1.30133748,2679.1,2679.0,3.73271]
[1727513228355,0.7766,2679.0,2678.8,3.733]
[1727513228518,2.33798016,2679.0,2678.9,3.73287]
[1727513228696,3.58009971,2679.0,2678.9,3.73287]
[1727513228902,3.67965491,2679.0,2678.9,3.73287]
[1727513229133,2.06827469,2679.0,2678.8,3.733]
[1727513229351,1.17058746,2678.9,2678.8,6.73293]
[1727513229643,1.21966497,2678.9,2678.8,3.0]
[1727513229825,2.85191679,2678.9,2678.8,3.0]
[1727513230212,2.85191679,2678.9,2678.8,6.73301]
[1727513230413,2.85191679,2678.9,2678.8,3.0]
[1727513230689,2.85191679,2678.9,2678.7,3.73313]
[1727513230938,1.241543,2678.8,2678.7,3.73313]
[1727513231339,1.21847806,2678.8,2678.7,3.73313]
[1727513232404,0.0489237,2678.8,2678.7,3.73313]
[1727513233361,0.82813481,2678.8,2678.7,3.73313]
[1727513234315,0.82813481,2678.8,2678.7,4.54573]
[1727513234544,0.0489237,2678.8,2678.7,5.373631]
[1727513235539,0.77921111,2679.0,2678.9,3.73287]
[1727513236857,0.827938,2679.0,2678.9,3.73287]
[1727513249504,0.04872689,2679.0,2678.9,3.73287]
[1727513250062,0.827938,2679.0,2678.9,3.73287]
[1727513250886,0.827938,2679.0,2678.8,3.733]
[1727513252083,0.77921111,2678.9,2678.8,3.733]
[1727513252462,0.82467272,2678.9,2678.8,3.733]
[1727513255391,0.04546161,2678.9,2678.8,3.733]
[1727513255597,0.82482852,2678.9,2678.8,3.733]
[1727513255892,0.04546161,2678.9,2678.8,3.733]
[1727513256090,0.82483561,2678.9,2678.8,3.733]
[1727513256265,1.21501597,2678.9,2678.8,3.733]
[1727513256699,1.21501597,2678.9,2678.6,3.7332]
[1727513256868,0.7795854,2678.8,2678.6,3.73316]
[1727513257073,0.7795854,2678.8,2678.7,3.73315]
[1727513257473,1.16955436,2678.9,2678.7,3.73315]
[1727513257675,0.77984837,2678.8,2678.7,3.73315]
[1727513258202,1.16955436,2678.8,2678.7,3.73315]
[1727513259359,1.16955436,2678.8,2678.6,3.0]
[1727513259569,1.16955436,2678.7,2678.5,3.0]
[1727513259980,1.16955436,2678.7,2678.3,3.0]
[1727513259981,1.16955436,2678.6,2678.3,3.0]
[1727513260183,0.7806558,2678.4,2678.3,6.73371]
[1727513260417,1.16955436,2678.4,2678.3,3.0]
[1727513260773,3.98298096,2678.4,2677.9,0.7737]
[1727513260926,1.56178497,2678.0,2677.8,3.73432]
[1727513261225,2.80137274,2677.9,2677.8,3.73432]
[1727513261528,1.28386907,2677.9,2677.8,3.73432]
[1727513261687,1.21630799,2677.9,2677.8,3.73432]
[1727513261888,1.28393198,2677.9,2677.7,4.50823]
[1727513262084,1.60651249,2677.9,2677.8,6.7344]
[1727513262285,2.84649759,2677.9,2677.8,3.0]
[1727513263986,2.84649759,2677.9,2677.5,3.73474]
[1727513264229,1.17144767,2677.6,2677.5,3.73474]
[1727513264541,1.21529171,2677.6,2677.5,3.73474]
[1727513266037,1.21529171,2677.6,2677.3,4.50871]
[1727513266336,0.7801717,2677.5,2677.4,3.0]
[1727513266546,0.04348881,2677.5,2677.4,3.0]
[1727513266702,1.21493648,2677.5,2677.4,3.0]
[1727513267447,0.8228994,2677.5,2677.4,3.0]
[1727513267940,0.8228994,2677.5,2677.4,6.73496]
[1727513268295,0.82274417,2677.5,2677.4,3.0]
[1727513268700,1.21493648,2677.5,2677.3,3.73501]
[1727513269043,0.77922768,2677.4,2677.3,3.0]
[1727513269400,0.82265278,2677.4,2677.3,3.0]
[1727513269736,0.82265278,2677.4,2677.1,3.7353]
[1727513269945,0.77922768,2677.3,2677.2,3.73523]
[1727513270699,0.82255171,2677.3,2677.2,3.73523]
[1727513271301,0.04332403,2677.3,2677.2,3.73523]
[1727513271810,0.04332403,2677.3,2677.1,3.7353]
[1727513272062,0.04332403,2677.3,2677.1,3.73528]
[1727513272361,0.04332403,2677.3,2677.2,3.73524]
[1727513274229,0.84702403,2677.3,2677.1,3.73528]
[1727513274922,0.89702409,2677.3,2677.0,3.7355]
[1727513275128,1.62625171,2677.3,2676.9,3.73554]
[1727513275449,0.77922768,2677.2,2676.7,8.27656]
[1727513275655,0.82922774,2677.2,2676.7,4.54064]
[1727513275970,0.04289705,2677.1,2676.7,3.73584]
[1727513276462,0.04289705,2677.1,2676.7,7.4717]
[1727513276764,0.04289705,2677.1,2676.7,7.47169]
[1727513276977,0.04289705,2677.1,2676.7,3.73584]
[1727513277267,0.04289705,2677.1,2676.7,3.73583]
[1727513277764,0.04289705,2677.1,2676.7,7.47169]
[1727513278925,0.04289705,2677.1,2676.8,3.73578]
[1727513279126,0.04289705,2677.1,2677.0,3.73552]
[1727513279554,0.8037,2677.3,2677.0,3.73552]
[1727513279758,0.04276324,2677.1,2677.0,3.73552]
[1727513280033,0.8037,2677.3,2677.0,3.73552]
[1727513280568,0.04281353,2677.2,2676.7,4.54067]
[1727513280793,3.82812359,2677.2,2676.6,3.736]
[1727513280957,4.5391,2677.1,2676.6,3.736]
[1727513281271,1.5679544,2676.9,2676.4,0.8048]
[1727513281487,1.5679544,2676.9,2676.3,3.73646]
[1727513281488,4.58950006,2676.8,2676.3,3.73646]
[1727513281797,0.89627163,2676.8,2676.4,3.73626]
[1727513282470,0.89627163,2676.8,2676.2,8.27792]
[1727513282471,1.5679544,2676.7,2676.2,8.27792]
[1727513282773,0.04247218,2676.6,2676.2,4.54135]
[1727513282979,0.09247224,2676.6,2676.2,3.73655]
[1727513283363,0.04247218,2676.6,2676.3,3.73649]
[1727513284375,0.04247218,2676.6,2676.2,3.73655]
[1727513284376,0.8037,2676.5,2676.2,3.73655]
[1727513284590,0.8037,2676.5,2676.0,4.54165]
[1727513284591,2.3716544,2676.5,2676.0,7.47367]
[1727513284913,0.04195593,2676.4,2676.0,7.47366]
[1727513285194,0.04195593,2676.4,2676.0,3.73682]
[1727513286472,0.8037,2676.3,2675.8,4.5419]
[1727513286673,0.09181992,2676.2,2675.9,3.73704]
[1727513287265,0.04181986,2676.2,2675.9,3.73704]
[1727513287498,0.85370006,2676.3,2675.9,3.73704]
[1727513287857,0.04090842,2676.1,2675.9,3.73704]
[1727513288194,0.04085809,2676.0,2675.8,3.7371]
[1727513288500,6.15817446,2676.3,2675.8,3.7371]
[1727513288702,0.04080774,2675.9,2675.8,3.7371]
[1727513288880,6.15817446,2676.3,2675.8,3.7371]
[1727513288881,0.8037,2676.0,2675.8,3.7371]
[1727513289053,0.0908078,2675.9,2675.6,3.73735]
[1727513289254,0.04080774,2675.9,2675.6,3.73735]
[1727513289666,0.05000006,2675.8,2675.6,3.73735]
[1727513290066,0.04067698,2675.7,2675.6,3.73747]
[1727513290453,0.05000006,2675.9,2675.6,3.73747]
[1727513290656,0.04036415,2675.7,2675.6,3.73747]
[1727513290884,0.04022485,2675.7,2675.5,3.73754]
[1727513291335,0.83330006,2675.8,2675.4,3.73769]
[1727513291497,0.0401745,2675.6,2675.3,3.73781]
[1727513291699,0.83330006,2675.8,2675.3,3.73781]
[1727513291935,0.03998479,2675.5,2675.4,3.73775]
[1727513292141,0.03998479,2675.5,2675.3,3.73781]
[1727513292142,0.83330006,2675.8,2675.5,3.73753]
[1727513292296,0.83330006,2675.8,2675.5,7.47507]
[1727513293218,0.83330006,2675.8,2675.6,3.73745]
[1727513293425,0.7833,2675.8,2675.6,3.73745]
[1727513293594,0.7833,2675.8,2675.5,3.73753]
[1727513294292,0.03996773,2675.7,2675.5,3.73753]
[1727513294514,0.03996773,2675.7,2675.6,3.73747]
[1727513294732,0.7833,2675.8,2675.6,3.73747]
[1727513295111,0.03976411,2675.7,2675.6,3.73747]
[1727513295510,0.7833,2675.8,2675.2,3.0]
[1727513295742,0.08991627,2675.7,2675.4,3.73775]
[1727513295956,0.03991621,2675.7,2675.3,3.73781]
[1727513296453,0.83330006,2675.8,2675.3,3.73781]
[1727513296804,0.03989151,2675.7,2675.3,3.73781]
[1727513297303,0.03984116,2675.6,2675.4,3.73772]
[1727513297948,2.40125446,2675.8,2675.4,3.73772]
[1727513298149,0.03985095,2675.5,2675.2,3.73803]
[1727513298454,0.05000006,2675.6,2675.2,3.73803]
[1727513298738,0.05000006,2675.6,2675.3,3.73789]
[1727513298940,0.03980375,2675.5,2675.3,3.73789]
[1727513299154,0.05000006,2675.6,2675.3,3.73789]
[1727513299318,0.83330006,2675.8,2675.5,3.73754]
[1727513299712,0.83330006,2675.8,2675.5,7.47508]
[1727513300214,0.83330006,2675.8,2675.5,3.73754]
[1727513301847,0.038516,2675.7,2675.5,3.73754]
[1727513302203,0.83330006,2675.8,2675.5,3.73754]
[1727513302405,0.03848616,2675.6,2675.5,3.73754]
[1727513302642,0.83330006,2675.8,2675.5,3.73754]
[1727513302942,0.03848616,2675.6,2675.5,3.73754]
[1727513303240,0.83330006,2675.8,2675.5,3.73754]
[1727513303448,0.03848616,2675.6,2675.5,3.73754]
[1727513303620,0.83330006,2675.8,2675.5,3.73754]
[1727513303821,0.03848616,2675.6,2675.5,3.73754]
[1727513304040,0.83330006,2675.8,2675.5,3.73754]
[1727513304217,0.03846565,2675.6,2675.5,3.73754]
[1727513304543,0.83330006,2675.8,2675.5,3.73754]
[1727513304750,0.03846565,2675.6,2675.5,3.73754]
[1727513304905,0.83330006,2675.8,2675.5,3.73754]
[1727513305105,0.03846565,2675.6,2675.5,3.73754]
[1727513305300,0.83330006,2675.8,2675.5,3.73754]
[1727513305507,0.03848616,2675.6,2675.5,3.73754]
[1727513305949,0.83330006,2675.8,2675.5,3.73754]
[1727513306253,0.03848616,2675.6,2675.5,3.73754]
[1727513306552,0.83330006,2675.8,2675.5,3.73754]
[1727513306757,0.03855049,2675.6,2675.5,3.73754]
[1727513307046,0.03859012,2675.7,2675.5,3.73754]
[1727513307549,0.03853977,2675.6,2675.5,3.73754]
[1727513307935,0.03853977,2675.6,2675.4,3.73773]
[1727513308446,2.40125446,2675.8,2675.4,3.73774]
[1727513308809,2.40125446,2675.8,2675.1,0.7802]
[1727513309005,0.03859012,2675.7,2675.3,3.73789]
[1727513309244,0.03859012,2675.7,2675.4,3.73768]
[1727513309447,2.40125446,2675.8,2675.4,3.73768]
[1727513309814,0.0385794,2675.7,2675.5,0.7802]
[1727513310256,0.05000006,2675.8,2675.5,0.7802]
[1727513310565,0.05000006,2675.8,2675.5,4.51781]
[1727513310867,0.0385794,2675.7,2675.5,4.51774]
[1727513311228,0.05000006,2675.9,2675.5,4.51774]
[1727513311433,0.03853976,2675.6,2675.5,4.51774]
[1727513311614,0.05000006,2675.9,2675.5,4.51774]
[1727513311817,0.03853976,2675.6,2675.5,4.51774]